[Event "Titled Tuesday Blitz August 15 Early 2023"]
[White "Wang, Alexander J"]
[Black "Buscar, Michael"]
[WhiteFideId "30955270"]
[BlackFideId "2603616"]
[WhiteElo "2288"]
[BlackElo "2403"]
[Result "1-0"]
[Round "8"]
[TimeControl "180+1"]
[Date "2023.08.15"]
[WhiteClock "0:00:11"]
[BlackClock "0:00:03"]
[Board "146"]

1. e4 {[%clk 0:03:00]}  c5 {[%clk 0:02:59]} 2. Nf3 {[%clk 0:02:59]}  Nc6 {[%clk 0:03:00]} 3. d4 {[%clk 0:03:00]}  cxd4 {[%clk 0:03:01]} 4. Nxd4 {[%clk 0:03:00]}  Nf6 {[%clk 0:03:01]} 5. Nc3 {[%clk 0:02:58]}  e5 {[%clk 0:03:02]} 6. Ndb5 {[%clk 0:02:55]}  h6 {[%clk 0:03:02]} 7. Nd6+ {[%clk 0:02:52]}  Bxd6 {[%clk 0:03:02]} 8. Qxd6 {[%clk 0:02:53]}  Qe7 {[%clk 0:03:02]} 9. Qxe7+ {[%clk 0:02:45]}  Kxe7 {[%clk 0:03:03]} 10. Be3 {[%clk 0:02:45]}  Rd8 {[%clk 0:03:04]} 11. O-O-O {[%clk 0:02:41]}  d6 {[%clk 0:03:04]} 12. Kb1 {[%clk 0:02:40]}  Be6 {[%clk 0:03:03]} 13. f3 {[%clk 0:02:39]}  d5 {[%clk 0:03:03]} 14. Bc5+ {[%clk 0:02:35]}  Ke8 {[%clk 0:03:03]} 15. exd5 {[%clk 0:02:34]}  Nxd5 {[%clk 0:03:04]} 16. Ne4 {[%clk 0:02:31]}  b6 {[%clk 0:02:50]} 17. Bf2 {[%clk 0:02:25]}  f5 {[%clk 0:02:47]} 18. Bb5 {[%clk 0:02:20]}  Rac8 {[%clk 0:02:45]} 19. Nd2 {[%clk 0:02:09]}  Kf7 {[%clk 0:02:35]} 20. Nc4 {[%clk 0:01:47]}  Kf6 {[%clk 0:02:26]} 21. Rhe1 {[%clk 0:01:34]}  Nd4 {[%clk 0:02:08]} 22. Bxd4 {[%clk 0:01:28]}  exd4 {[%clk 0:02:08]} 23. Rxd4 {[%clk 0:01:25]}  Rc5 {[%clk 0:01:47]} 24. Na3 {[%clk 0:01:08]}  Rdc8 {[%clk 0:01:30]} 25. Bc4 {[%clk 0:00:59]}  Nc3+ {[%clk 0:01:22]} 26. bxc3 {[%clk 0:00:56]}  Bxc4 {[%clk 0:01:22]} 27. Nxc4 {[%clk 0:00:55]}  Rxc4 {[%clk 0:01:22]} 28. Rxc4 {[%clk 0:00:55]}  Rxc4 {[%clk 0:01:23]} 29. Kb2 {[%clk 0:00:55]}  g5 {[%clk 0:01:19]} 30. Rd1 {[%clk 0:00:53]}  Rc6 {[%clk 0:01:18]} 31. Rd7 {[%clk 0:00:51]}  a5 {[%clk 0:01:18]} 32. Kb3 {[%clk 0:00:44]}  Ke6 {[%clk 0:01:18]} 33. Rh7 {[%clk 0:00:43]}  Ke5 {[%clk 0:01:18]} 34. g3 {[%clk 0:00:41]}  g4 {[%clk 0:01:15]} 35. fxg4 {[%clk 0:00:38]}  fxg4 {[%clk 0:01:15]} 36. Re7+ {[%clk 0:00:33]}  Kf5 {[%clk 0:01:08]} 37. a4 {[%clk 0:00:31]}  Kf6 {[%clk 0:01:02]} 38. Rh7 {[%clk 0:00:30]}  Kf5 {[%clk 0:01:01]} 39. Re7 {[%clk 0:00:29]}  Kg5 {[%clk 0:00:50]} 40. c4 {[%clk 0:00:27]}  Kf6 {[%clk 0:00:49]} 41. Re4 {[%clk 0:00:26]}  Kg5 {[%clk 0:00:46]} 42. Kc3 {[%clk 0:00:26]}  Kf5 {[%clk 0:00:46]} 43. Rf4+ {[%clk 0:00:25]}  Kg5 {[%clk 0:00:46]} 44. Kd4 {[%clk 0:00:25]}  Rd6+ {[%clk 0:00:45]} 45. Ke5 {[%clk 0:00:25]}  Rd2 {[%clk 0:00:44]} 46. Rf5+ {[%clk 0:00:20]}  Kg6 {[%clk 0:00:44]} 47. Rf6+ {[%clk 0:00:20]}  Kg5 {[%clk 0:00:45]} 48. Rxb6 {[%clk 0:00:20]}  Rxc2 {[%clk 0:00:45]} 49. Kd4 {[%clk 0:00:19]}  Rxh2 {[%clk 0:00:44]} 50. Rb5+ {[%clk 0:00:19]}  Kf6 {[%clk 0:00:43]} 51. Rxa5 {[%clk 0:00:20]}  h5 {[%clk 0:00:44]} 52. Ra6+ {[%clk 0:00:20]}  Ke7 {[%clk 0:00:44]} 53. Ra7+ {[%clk 0:00:20]}  Kd6 {[%clk 0:00:44]} 54. Rh7 {[%clk 0:00:19]}  Rh3 {[%clk 0:00:36]} 55. Rh6+ {[%clk 0:00:18]}  Kc7 {[%clk 0:00:37]} 56. Kc5 {[%clk 0:00:19]}  Rxg3 {[%clk 0:00:34]} 57. Rxh5 {[%clk 0:00:19]}  Ra3 {[%clk 0:00:35]} 58. Kb4 {[%clk 0:00:18]}  Ra1 {[%clk 0:00:35]} 59. Rg5 {[%clk 0:00:19]}  Rg1 {[%clk 0:00:34]} 60. Kc5 {[%clk 0:00:19]}  g3 {[%clk 0:00:35]} 61. Rg7+ {[%clk 0:00:19]}  Kb8 {[%clk 0:00:34]} 62. Kc6 {[%clk 0:00:18]}  g2 {[%clk 0:00:31]} 63. c5 {[%clk 0:00:18]}  Ra1 {[%clk 0:00:30]} 64. Rxg2 {[%clk 0:00:18]}  Rxa4 {[%clk 0:00:30]} 65. Rg8+ {[%clk 0:00:18]}  Ka7 {[%clk 0:00:31]} 66. Kd5 {[%clk 0:00:18]}  Ra6 {[%clk 0:00:30]} 67. c6 {[%clk 0:00:18]}  Ra1 {[%clk 0:00:29]} 68. Kd6 {[%clk 0:00:17]}  Rd1+ {[%clk 0:00:25]} 69. Kc7 {[%clk 0:00:17]}  Rc1 {[%clk 0:00:24]} 70. Rd8 {[%clk 0:00:16]}  Ka6 {[%clk 0:00:24]} 71. Rd5 {[%clk 0:00:16]}  Rc2 {[%clk 0:00:23]} 72. Rd1 {[%clk 0:00:14]}  Kb5 {[%clk 0:00:22]} 73. Rb1+ {[%clk 0:00:14]}  Ka6 {[%clk 0:00:22]} 74. Kd7 {[%clk 0:00:14]}  Rd2+ {[%clk 0:00:21]} 75. Kc8 {[%clk 0:00:14]}  Ka7 {[%clk 0:00:21]} 76. c7 {[%clk 0:00:14]}  Ka8 {[%clk 0:00:21]} 77. Rb4 {[%clk 0:00:11]}  Ka7 {[%clk 0:00:20]} 78. Rf4 {[%clk 0:00:11]}  Rd3 {[%clk 0:00:16]} 79. Rf7 {[%clk 0:00:11]}  Rd4 {[%clk 0:00:16]} 80. Rd7 {[%clk 0:00:11]}  Rh4 {[%clk 0:00:13]} 81. Rd5 {[%clk 0:00:10]}  Rh8+ {[%clk 0:00:07]} 82. Kd7 {[%clk 0:00:09]}  Rh7+ {[%clk 0:00:08]} 83. Kc6 {[%clk 0:00:09]}  Rh6+ {[%clk 0:00:08]} 84. Rd6 {[%clk 0:00:09]}  Rh8 {[%clk 0:00:05]} 85. Rd8 {[%clk 0:00:09]}  Rh6+ {[%clk 0:00:05]} 86. Kd5 {[%clk 0:00:09]}  Rh5+ {[%clk 0:00:05]} 87. Ke4 {[%clk 0:00:09]}  Rh4+ {[%clk 0:00:04]} 88. Kf3 {[%clk 0:00:09]}  Rh3+ {[%clk 0:00:03]} 89. Kg2 {[%clk 0:00:09]}  Rc3 {[%clk 0:00:03]} 90. c8=Q {[%clk 0:00:10]}  Rxc8 {[%clk 0:00:03]} 91. Rxc8 {[%clk 0:00:11]}  Kb7 {[%clk 0:00:03]} 92. Rf8 {[%clk 0:00:11]} 1-0


[Site "https://www.chess.com"]

[Event "Titled Tuesday Blitz August 15 Early 2023"]
[White "LeoLV10"]
[Black "Souza Neves, Andrey M."]
[BlackFideId "2101815"]
[WhiteElo "2465"]
[BlackElo "2134"]
[Result "1-0"]
[Round "8"]
[TimeControl "180+1"]
[Date "2023.08.15"]
[WhiteClock "0:00:34"]
[BlackClock "0:00:00"]
[Board "150"]

1. e4 {[%clk 0:03:00]}  c6 {[%clk 0:02:56]} 2. d4 {[%clk 0:03:00]}  d5 {[%clk 0:02:55]} 3. e5 {[%clk 0:03:01]}  Bf5 {[%clk 0:02:53]} 4. g4 {[%clk 0:03:00]}  Bd7 {[%clk 0:02:51]} 5. Be2 {[%clk 0:02:59]}  e6 {[%clk 0:02:45]} 6. h4 {[%clk 0:02:56]}  c5 {[%clk 0:02:44]} 7. c3 {[%clk 0:02:56]}  Nc6 {[%clk 0:02:38]} 8. Nf3 {[%clk 0:02:55]}  Qb6 {[%clk 0:02:36]} 9. h5 {[%clk 0:02:54]}  h6 {[%clk 0:02:34]} 10. a3 {[%clk 0:02:50]}  c4 {[%clk 0:02:28]} 11. Nbd2 {[%clk 0:02:46]}  Na5 {[%clk 0:02:27]} 12. Rb1 {[%clk 0:02:45]}  Ne7 {[%clk 0:02:14]} 13. O-O {[%clk 0:02:14]}  Nb3 {[%clk 0:02:04]} 14. Nxb3 {[%clk 0:02:13]}  Ba4 {[%clk 0:02:02]} 15. Be3 {[%clk 0:02:06]}  Bxb3 {[%clk 0:02:00]} 16. Qd2 {[%clk 0:02:05]}  O-O-O {[%clk 0:01:54]} 17. Bd1 {[%clk 0:02:02]}  Nc6 {[%clk 0:01:45]} 18. Bxb3 {[%clk 0:01:58]}  Qxb3 {[%clk 0:01:46]} 19. Qc1 {[%clk 0:01:52]}  Na5 {[%clk 0:01:40]} 20. Nd2 {[%clk 0:01:52]}  Qb6 {[%clk 0:01:37]} 21. b4 {[%clk 0:01:52]}  cxb3 {[%clk 0:01:36]} 22. c4 {[%clk 0:01:50]}  Kb8 {[%clk 0:01:02]} 23. c5 {[%clk 0:01:41]}  Qb5 {[%clk 0:01:00]} 24. Qc3 {[%clk 0:01:41]}  Be7 {[%clk 0:00:48]} 25. Nxb3 {[%clk 0:01:39]}  Nxb3 {[%clk 0:00:41]} 26. Rxb3 {[%clk 0:01:39]}  Qc4 {[%clk 0:00:34]} 27. Qb2 {[%clk 0:01:38]}  Rd7 {[%clk 0:00:32]} 28. Rb1 {[%clk 0:01:38]}  Qa6 {[%clk 0:00:27]} 29. Qc2 {[%clk 0:01:23]}  Rc8 {[%clk 0:00:24]} 30. Qh7 {[%clk 0:01:21]}  Bf8 {[%clk 0:00:24]} 31. Kg2 {[%clk 0:01:13]}  Qe2 {[%clk 0:00:19]} 32. Kg3 {[%clk 0:01:05]}  Rdc7 {[%clk 0:00:18]} 33. R3b2 {[%clk 0:00:55]}  Qa6 {[%clk 0:00:14]} 34. Qc2 {[%clk 0:00:51]}  Ka8 {[%clk 0:00:12]} 35. Qb3 {[%clk 0:00:46]}  f6 {[%clk 0:00:10]} 36. Bf4 {[%clk 0:00:44]}  f5 {[%clk 0:00:05]} 37. gxf5 {[%clk 0:00:39]}  exf5 {[%clk 0:00:06]} 38. Qxd5 {[%clk 0:00:38]}  g5 {[%clk 0:00:06]} 39. hxg6 {[%clk 0:00:37]}  Qxg6+ {[%clk 0:00:05]} 40. Kf3 {[%clk 0:00:33]}  Qg4+ {[%clk 0:00:00]} 41. Ke3 {[%clk 0:00:34]} 1-0


[Site "https://www.chess.com"]

[Event "Titled Tuesday Blitz August 15 Early 2023"]
[White "Juicy_Fork"]
[Black "Tomaszewski, Kacper"]
[BlackFideId "1127373"]
[WhiteElo "2243"]
[BlackElo "2458"]
[Result "1-0"]
[Round "8"]
[TimeControl "180+1"]
[Date "2023.08.15"]
[WhiteClock "0:00:26"]
[BlackClock "0:00:00"]
[Board "151"]

1. e4 {[%clk 0:03:00]}  d5 {[%clk 0:03:00]} 2. exd5 {[%clk 0:03:00]}  Qxd5 {[%clk 0:03:00]} 3. Nc3 {[%clk 0:03:00]}  Qd6 {[%clk 0:03:01]} 4. d4 {[%clk 0:03:00]}  Nf6 {[%clk 0:03:02]} 5. Nf3 {[%clk 0:03:01]}  Nc6 {[%clk 0:03:02]} 6. Bb5 {[%clk 0:02:58]}  a6 {[%clk 0:03:02]} 7. Bxc6+ {[%clk 0:02:57]}  Qxc6 {[%clk 0:03:01]} 8. O-O {[%clk 0:02:56]}  Bg4 {[%clk 0:03:00]} 9. d5 {[%clk 0:02:52]}  Qc4 {[%clk 0:02:41]} 10. h3 {[%clk 0:02:51]}  Bh5 {[%clk 0:02:35]} 11. Qd4 {[%clk 0:02:03]}  Qxd4 {[%clk 0:02:34]} 12. Nxd4 {[%clk 0:02:04]}  O-O-O {[%clk 0:02:34]} 13. Be3 {[%clk 0:01:55]}  Nxd5 {[%clk 0:02:33]} 14. Nxd5 {[%clk 0:01:55]}  Rxd5 {[%clk 0:02:34]} 15. f4 {[%clk 0:01:55]}  e6 {[%clk 0:02:28]} 16. c4 {[%clk 0:01:52]}  Rd8 {[%clk 0:02:26]} 17. g4 {[%clk 0:01:45]}  Bg6 {[%clk 0:02:25]} 18. Nf3 {[%clk 0:01:44]}  Bd3 {[%clk 0:02:22]} 19. Rfd1 {[%clk 0:01:43]}  f6 {[%clk 0:01:34]} 20. b3 {[%clk 0:01:41]}  Bg6 {[%clk 0:01:12]} 21. Rxd8+ {[%clk 0:01:39]}  Kxd8 {[%clk 0:01:13]} 22. Rd1+ {[%clk 0:01:39]}  Kc8 {[%clk 0:01:12]} 23. c5 {[%clk 0:01:21]}  Bf7 {[%clk 0:01:12]} 24. b4 {[%clk 0:01:20]}  Be7 {[%clk 0:01:12]} 25. Kf2 {[%clk 0:01:16]}  Rd8 {[%clk 0:01:12]} 26. Bd4 {[%clk 0:01:16]}  Rd5 {[%clk 0:01:03]} 27. Kg3 {[%clk 0:01:13]}  Bd8 {[%clk 0:00:57]} 28. Rd2 {[%clk 0:01:03]}  c6 {[%clk 0:00:54]} 29. Bc3 {[%clk 0:01:01]}  Rxd2 {[%clk 0:00:53]} 30. Nxd2 {[%clk 0:01:02]}  a5 {[%clk 0:00:45]} 31. Nc4 {[%clk 0:00:59]}  axb4 {[%clk 0:00:42]} 32. Nd6+ {[%clk 0:00:57]}  Kd7 {[%clk 0:00:31]} 33. Bxb4 {[%clk 0:00:57]}  Bg8 {[%clk 0:00:29]} 34. Nxb7 {[%clk 0:00:54]}  e5 {[%clk 0:00:28]} 35. a4 {[%clk 0:00:52]}  Bc7 {[%clk 0:00:25]} 36. f5 {[%clk 0:00:47]}  Bc4 {[%clk 0:00:23]} 37. Ba5 {[%clk 0:00:40]}  Bxa5 {[%clk 0:00:15]} 38. Nxa5 {[%clk 0:00:40]}  Bd5 {[%clk 0:00:15]} 39. Nb7 {[%clk 0:00:39]}  Bb3 {[%clk 0:00:13]} 40. a5 {[%clk 0:00:39]}  Kc7 {[%clk 0:00:10]} 41. Nd6 {[%clk 0:00:39]}  Kb8 {[%clk 0:00:07]} 42. Ne8 {[%clk 0:00:36]}  Ka7 {[%clk 0:00:03]} 43. Nxg7 {[%clk 0:00:36]}  Bf7 {[%clk 0:00:03]} 44. Ne6 {[%clk 0:00:29]}  Ka6 {[%clk 0:00:03]} 45. g5 {[%clk 0:00:26]}  fxg5 {[%clk 0:00:03]} 46. Nxg5 {[%clk 0:00:27]}  Bd5 {[%clk 0:00:00]} 47. f6 {[%clk 0:00:26]} 1-0


[Site "https://www.chess.com"]

[Event "Titled Tuesday Blitz August 15 Early 2023"]
[White "Fernandez Hernandez, Gerardo"]
[Black "favesaul"]
[WhiteFideId "2207400"]
[WhiteElo "2229"]
[BlackElo "2439"]
[Result "1-0"]
[Round "8"]
[TimeControl "180+1"]
[Date "2023.08.15"]
[WhiteClock "0:00:29"]
[BlackClock "0:00:00"]
[Board "152"]

1. e4 {[%clk 0:03:00]}  e5 {[%clk 0:02:14]} 2. Nf3 {[%clk 0:02:58]}  Nc6 {[%clk 0:02:13]} 3. Bc4 {[%clk 0:02:59]}  Nf6 {[%clk 0:02:13]} 4. d4 {[%clk 0:02:58]}  exd4 {[%clk 0:02:12]} 5. e5 {[%clk 0:02:58]}  Ne4 {[%clk 0:02:12]} 6. O-O {[%clk 0:02:38]}  d5 {[%clk 0:02:05]} 7. exd6 {[%clk 0:02:37]}  Nxd6 {[%clk 0:01:57]} 8. Re1+ {[%clk 0:02:36]}  Be7 {[%clk 0:01:58]} 9. Bd5 {[%clk 0:02:26]}  O-O {[%clk 0:01:33]} 10. Nxd4 {[%clk 0:02:00]}  Nxd4 {[%clk 0:01:30]} 11. Qxd4 {[%clk 0:02:00]}  Bf6 {[%clk 0:01:30]} 12. Qd1 {[%clk 0:01:19]}  Bf5 {[%clk 0:01:23]} 13. Nc3 {[%clk 0:01:15]}  c6 {[%clk 0:01:20]} 14. Bb3 {[%clk 0:01:09]}  Qd7 {[%clk 0:01:17]} 15. Bf4 {[%clk 0:01:08]}  Rad8 {[%clk 0:01:17]} 16. Qf3 {[%clk 0:00:56]}  Bxc3 {[%clk 0:00:32]} 17. bxc3 {[%clk 0:00:52]}  Rfe8 {[%clk 0:00:32]} 18. Bxd6 {[%clk 0:00:50]}  Rxe1+ {[%clk 0:00:16]} 19. Rxe1 {[%clk 0:00:51]}  g6 {[%clk 0:00:14]} 20. Bg3 {[%clk 0:00:46]}  h5 {[%clk 0:00:14]} 21. h3 {[%clk 0:00:46]}  b5 {[%clk 0:00:12]} 22. a4 {[%clk 0:00:45]}  a5 {[%clk 0:00:10]} 23. Bf4 {[%clk 0:00:44]}  Re8 {[%clk 0:00:05]} 24. Rxe8+ {[%clk 0:00:42]}  Qxe8 {[%clk 0:00:06]} 25. Qe3 {[%clk 0:00:40]}  Qd7 {[%clk 0:00:06]} 26. Qd4 {[%clk 0:00:39]}  Qe7 {[%clk 0:00:03]} 27. Be5 {[%clk 0:00:34]}  Kh7 {[%clk 0:00:01]} 28. Bh8 {[%clk 0:00:32]}  f6 {[%clk 0:00:01]} 29. Qxf6 {[%clk 0:00:29]}  Qxf6 {[%clk 0:00:00]} 30. Bxf6 {[%clk 0:00:29]} 1-0


[Site "https://www.chess.com"]

[Event "Titled Tuesday Blitz August 15 Early 2023"]
[White "Liu, Leonardo"]
[Black "Hoffmann, Asa"]
[WhiteFideId "30965780"]
[BlackFideId "2001470"]
[WhiteElo "2228"]
[BlackElo "2384"]
[Result "1-0"]
[Round "8"]
[TimeControl "180+1"]
[Date "2023.08.15"]
[WhiteClock "0:00:19"]
[BlackClock "0:00:00"]
[Board "153"]

1. e4 {[%clk 0:03:00]}  d6 {[%clk 0:02:59]} 2. Nc3 {[%clk 0:03:00]}  c6 {[%clk 0:02:58]} 3. g3 {[%clk 0:03:01]}  g6 {[%clk 0:02:57]} 4. Bg2 {[%clk 0:03:01]}  Bg7 {[%clk 0:02:57]} 5. d3 {[%clk 0:03:02]}  Nf6 {[%clk 0:02:49]} 6. h3 {[%clk 0:02:58]}  O-O {[%clk 0:02:49]} 7. Be3 {[%clk 0:02:57]}  d5 {[%clk 0:02:45]} 8. Nge2 {[%clk 0:02:41]}  e5 {[%clk 0:02:43]} 9. exd5 {[%clk 0:02:37]}  cxd5 {[%clk 0:02:43]} 10. Bg5 {[%clk 0:02:38]}  Be6 {[%clk 0:02:41]} 11. Qd2 {[%clk 0:02:34]}  Nc6 {[%clk 0:02:40]} 12. O-O {[%clk 0:02:30]}  Re8 {[%clk 0:02:35]} 13. f4 {[%clk 0:02:25]}  d4 {[%clk 0:02:09]} 14. Ne4 {[%clk 0:02:22]}  Nxe4 {[%clk 0:02:08]} 15. dxe4 {[%clk 0:02:18]}  f6 {[%clk 0:02:05]} 16. Bh4 {[%clk 0:02:16]}  Qb6 {[%clk 0:01:54]} 17. Kh2 {[%clk 0:02:08]}  Rac8 {[%clk 0:01:41]} 18. fxe5 {[%clk 0:02:07]}  fxe5 {[%clk 0:01:38]} 19. c3 {[%clk 0:01:58]}  Bc4 {[%clk 0:01:31]} 20. Bf6 {[%clk 0:01:55]}  Qc7 {[%clk 0:01:21]} 21. Bxg7 {[%clk 0:01:52]}  Qxg7 {[%clk 0:01:17]} 22. Rf3 {[%clk 0:01:42]}  Bxe2 {[%clk 0:01:12]} 23. Qxe2 {[%clk 0:01:42]}  Rf8 {[%clk 0:01:11]} 24. Raf1 {[%clk 0:01:37]}  Rxf3 {[%clk 0:01:10]} 25. Rxf3 {[%clk 0:01:21]}  Rf8 {[%clk 0:01:10]} 26. cxd4 {[%clk 0:01:19]}  Nxd4 {[%clk 0:01:07]} 27. Qc4+ {[%clk 0:01:19]}  Kh8 {[%clk 0:01:06]} 28. Rxf8+ {[%clk 0:01:16]}  Qxf8 {[%clk 0:01:06]} 29. Qd5 {[%clk 0:01:17]}  Qe7 {[%clk 0:01:05]} 30. Bf1 {[%clk 0:01:13]}  Kg7 {[%clk 0:00:57]} 31. Bc4 {[%clk 0:01:12]}  Qf6 {[%clk 0:00:51]} 32. Qd7+ {[%clk 0:00:53]}  Kh6 {[%clk 0:00:50]} 33. Qg4 {[%clk 0:00:54]}  Qf2+ {[%clk 0:00:47]} 34. Kh1 {[%clk 0:00:55]}  Qe1+ {[%clk 0:00:39]} 35. Kg2 {[%clk 0:00:34]}  Qd2+ {[%clk 0:00:39]} 36. Kg1 {[%clk 0:00:31]}  Qc1+ {[%clk 0:00:38]} 37. Bf1 {[%clk 0:00:32]}  Qe3+ {[%clk 0:00:32]} 38. Kh1 {[%clk 0:00:29]}  Qf3+ {[%clk 0:00:31]} 39. Qxf3 {[%clk 0:00:29]}  Nxf3 {[%clk 0:00:31]} 40. Kg2 {[%clk 0:00:27]}  Nd4 {[%clk 0:00:28]} 41. Bc4 {[%clk 0:00:27]}  Kg5 {[%clk 0:00:27]} 42. Bd5 {[%clk 0:00:27]}  b6 {[%clk 0:00:27]} 43. Kf2 {[%clk 0:00:27]}  h5 {[%clk 0:00:27]} 44. Ke3 {[%clk 0:00:28]}  Kf6 {[%clk 0:00:25]} 45. Bc4 {[%clk 0:00:26]}  g5 {[%clk 0:00:25]} 46. Be2 {[%clk 0:00:24]}  h4 {[%clk 0:00:24]} 47. gxh4 {[%clk 0:00:23]}  gxh4 {[%clk 0:00:24]} 48. Bg4 {[%clk 0:00:24]}  Ke7 {[%clk 0:00:19]} 49. Kd3 {[%clk 0:00:24]}  Kd6 {[%clk 0:00:18]} 50. Kc4 {[%clk 0:00:25]}  b5+ {[%clk 0:00:17]} 51. Kb4 {[%clk 0:00:24]}  a6 {[%clk 0:00:17]} 52. Ka5 {[%clk 0:00:23]}  Kc5 {[%clk 0:00:12]} 53. Kxa6 {[%clk 0:00:23]}  Nc6 {[%clk 0:00:07]} 54. Kb7 {[%clk 0:00:19]}  Nb4 {[%clk 0:00:06]} 55. a3 {[%clk 0:00:19]}  Nd3 {[%clk 0:00:06]} 56. b4+ {[%clk 0:00:19]}  Kd4 {[%clk 0:00:00]} 57. Kb6 {[%clk 0:00:19]} 1-0


[Site "https://www.chess.com"]

[Event "Titled Tuesday Blitz August 15 Early 2023"]
[White "Daeschler, Florian"]
[Black "Thiel, Thomas"]
[WhiteFideId "20678193"]
[BlackFideId "4615964"]
[WhiteElo "2370"]
[BlackElo "2224"]
[Result "0-1"]
[Round "8"]
[TimeControl "180+1"]
[Date "2023.08.15"]
[WhiteClock "0:00:29"]
[BlackClock "0:00:50"]
[Board "154"]

1. Nf3 {[%clk 0:02:53]}  Nf6 {[%clk 0:02:57]} 2. c4 {[%clk 0:02:53]}  g6 {[%clk 0:02:56]} 3. Nc3 {[%clk 0:02:51]}  Bg7 {[%clk 0:02:56]} 4. d4 {[%clk 0:02:51]}  d5 {[%clk 0:02:54]} 5. Bf4 {[%clk 0:02:38]}  O-O {[%clk 0:02:51]} 6. e3 {[%clk 0:02:39]}  c5 {[%clk 0:02:50]} 7. Be2 {[%clk 0:02:37]}  cxd4 {[%clk 0:02:48]} 8. exd4 {[%clk 0:02:37]}  dxc4 {[%clk 0:02:47]} 9. O-O {[%clk 0:02:37]}  Nc6 {[%clk 0:02:46]} 10. Bxc4 {[%clk 0:02:37]}  Bg4 {[%clk 0:02:45]} 11. d5 {[%clk 0:02:33]}  Na5 {[%clk 0:02:38]} 12. Be2 {[%clk 0:02:33]}  b6 {[%clk 0:02:37]} 13. h3 {[%clk 0:02:31]}  Bf5 {[%clk 0:02:33]} 14. Nd4 {[%clk 0:02:26]}  Nxd5 {[%clk 0:02:15]} 15. Nxf5 {[%clk 0:02:11]}  Nxf4 {[%clk 0:02:13]} 16. Qxd8 {[%clk 0:02:10]}  Raxd8 {[%clk 0:02:05]} 17. Nxe7+ {[%clk 0:02:10]}  Kh8 {[%clk 0:02:05]} 18. Bf3 {[%clk 0:02:06]}  Nc4 {[%clk 0:02:02]} 19. Nc6 {[%clk 0:02:02]}  Rd2 {[%clk 0:01:57]} 20. Ne4 {[%clk 0:01:53]}  Rxb2 {[%clk 0:01:55]} 21. Rac1 {[%clk 0:01:54]}  Nd2 {[%clk 0:01:47]} 22. Nxd2 {[%clk 0:01:53]}  Rxd2 {[%clk 0:01:47]} 23. Nxa7 {[%clk 0:01:48]}  Rxa2 {[%clk 0:01:45]} 24. Rc7 {[%clk 0:01:48]}  Bd4 {[%clk 0:01:34]} 25. Nb5 {[%clk 0:01:47]}  Bc5 {[%clk 0:01:33]} 26. Nc3 {[%clk 0:01:40]}  Rc2 {[%clk 0:01:32]} 27. Nb5 {[%clk 0:01:29]}  Kg7 {[%clk 0:01:27]} 28. Be4 {[%clk 0:01:28]}  Rc4 {[%clk 0:01:17]} 29. Bb7 {[%clk 0:01:19]}  Rd8 {[%clk 0:01:05]} 30. g3 {[%clk 0:00:59]}  Nxh3+ {[%clk 0:01:02]} 31. Kg2 {[%clk 0:01:00]}  Ng5 {[%clk 0:01:01]} 32. Na7 {[%clk 0:00:46]}  Rd2 {[%clk 0:01:00]} 33. Nc6 {[%clk 0:00:36]}  Rcc2 {[%clk 0:01:00]} 34. Ne5 {[%clk 0:00:34]}  Rxf2+ {[%clk 0:00:59]} 35. Rxf2 {[%clk 0:00:35]}  Rxf2+ {[%clk 0:00:57]} 36. Kh1 {[%clk 0:00:36]}  h5 {[%clk 0:00:53]} 37. Bd5 {[%clk 0:00:29]}  Rf5 {[%clk 0:00:50]} 0-1


[Site "https://www.chess.com"]

[Event "Titled Tuesday Blitz August 15 Early 2023"]
[White "Tharushi, T H D Niklesha"]
[Black "UgarteCesar"]
[WhiteFideId "9918264"]
[WhiteElo "2173"]
[BlackElo "2329"]
[Result "0-1"]
[Round "8"]
[TimeControl "180+1"]
[Date "2023.08.15"]
[WhiteClock "0:01:26"]
[BlackClock "0:01:50"]
[Board "157"]

1. e4 {[%clk 0:03:00]}  c5 {[%clk 0:02:59]} 2. Nf3 {[%clk 0:03:00]}  Nc6 {[%clk 0:02:59]} 3. d4 {[%clk 0:03:00]}  cxd4 {[%clk 0:03:00]} 4. Nxd4 {[%clk 0:03:00]}  Qb6 {[%clk 0:03:01]} 5. Nb3 {[%clk 0:02:54]}  Nf6 {[%clk 0:02:59]} 6. Nc3 {[%clk 0:02:52]}  e6 {[%clk 0:02:59]} 7. Be3 {[%clk 0:02:52]}  Qc7 {[%clk 0:02:58]} 8. Be2 {[%clk 0:02:45]}  a6 {[%clk 0:02:57]} 9. O-O {[%clk 0:02:45]}  b5 {[%clk 0:02:58]} 10. Qd2 {[%clk 0:02:42]}  b4 {[%clk 0:02:57]} 11. Na4 {[%clk 0:02:41]}  Nxe4 {[%clk 0:02:56]} 12. Qd3 {[%clk 0:02:39]}  d5 {[%clk 0:02:56]} 13. Nb6 {[%clk 0:02:38]}  Rb8 {[%clk 0:02:57]} 14. Nxc8 {[%clk 0:02:37]}  Qxc8 {[%clk 0:02:56]} 15. Qxa6 {[%clk 0:02:38]}  Qxa6 {[%clk 0:02:42]} 16. Bxa6 {[%clk 0:02:39]}  Be7 {[%clk 0:02:42]} 17. f3 {[%clk 0:02:33]}  Nf6 {[%clk 0:02:35]} 18. Nc5 {[%clk 0:02:25]}  O-O {[%clk 0:02:32]} 19. Nb3 {[%clk 0:02:16]}  Nd7 {[%clk 0:02:27]} 20. Rad1 {[%clk 0:02:12]}  Nce5 {[%clk 0:02:16]} 21. Rd2 {[%clk 0:01:59]}  Ra8 {[%clk 0:02:09]} 22. Bb7 {[%clk 0:01:34]}  Rxa2 {[%clk 0:01:56]} 23. f4 {[%clk 0:01:34]}  Nc4 {[%clk 0:01:54]} 24. Re2 {[%clk 0:01:34]}  Nxe3 {[%clk 0:01:51]} 25. Rxe3 {[%clk 0:01:35]}  Nc5 {[%clk 0:01:51]} 26. Kh1 {[%clk 0:01:26]}  Nxb7 {[%clk 0:01:50]} 0-1


[Site "https://www.chess.com"]